bitfinex/quotes_ETHUSD_20230113
["timestamp","ask_amount","ask_price","bid_price","bid_amount"]
[1673652454408,0.23885704,1448.2,1448.0,0.004]
[1673652454660,0.23885704,1448.2,1447.9,6.91018]
[1673652454878,0.23885704,1448.2,1447.9,13.81639]
[1673652455711,0.092,1448.5,1448.0,5.0]
[1673652455875,3.43383009,1448.5,1448.1,13.8109]
[1673652456082,3.43383009,1448.5,1448.1,16.386977]
[1673652459124,3.43383009,1448.4,1448.1,0.004]
[1673652459330,2.0,1448.3,1448.0,3.0]
[1673652459597,2.0,1448.3,1448.0,6.90591]
[1673652459769,7.4424131,1448.3,1448.0,0.004]
[1673652459996,5.5344131,1448.3,1447.9,35.45654]
[1673652460209,5.5344131,1448.3,1447.9,28.54999]
[1673652460524,5.5344131,1448.3,1447.9,35.45454]
[1673652460735,3.52583009,1448.3,1447.9,27.52414]
[1673652460918,3.43383009,1448.3,1447.9,27.52414]
[1673652461283,0.092,1448.4,1448.1,20.7165]
[1673652461593,100.092,1448.5,1448.1,20.7205]
[1673652461782,103.52583009,1448.5,1448.1,23.09875]
[1673652462001,103.52583009,1448.5,1448.1,23.10459183]
[1673652463563,103.52583009,1448.5,1448.1,23.00459183]
[1673652465808,111.94057009,1448.5,1448.1,6.81534183]
[1673652466333,111.94057009,1448.5,1448.1,13.72094183]
[1673652466538,4.95583009,1448.4,1448.1,0.004]
[1673652466711,6.95483009,1448.3,1448.0,6.90597]
[1673652466921,7.5424131,1448.3,1448.0,6.90997]
[1673652467330,4.0214131,1448.3,1448.0,20.72211]
[1673652467540,4.0214131,1448.3,1448.0,21.75493826]
[1673652467541,3.43383009,1448.3,1448.0,21.75493826]
[1673652467802,3.43383009,1448.3,1448.0,20.72211]
[1673652468380,3.43383009,1448.3,1448.0,21.75493826]
[1673652468608,0.092,1448.4,1448.0,21.75493826]
[1673652468820,100.092,1448.5,1448.0,18.66500826]
[1673652469036,100.092,1448.5,1448.2,27.62008]
[1673652469278,100.092,1448.5,1448.2,27.62408]
[1673652469487,100.092,1448.5,1448.2,28.65690826]
[1673652469857,100.092,1448.5,1448.2,27.62408]
[1673652470382,100.092,1448.5,1448.2,23.96342445]
[1673652470848,100.092,1448.5,1448.2,23.96142445]
[1673652471104,100.092,1448.5,1448.2,23.96342445]
[1673652473415,100.092,1448.5,1448.2,24.99625271]
[1673652473832,100.092,1448.5,1448.2,23.96342445]
[1673652474043,100.092,1448.5,1448.4,27.61668]
[1673652474239,100.092,1448.5,1448.4,27.62068]
[1673652475257,100.092,1448.5,1448.4,20.71651]
[1673652477789,100.042,1448.5,1448.4,20.71651]
[1673652478628,100.042,1448.5,1448.4,0.004]
[1673652478836,106.87867191,1448.5,1448.2,9.90898]
[1673652479049,106.87867191,1448.5,1448.2,16.81396]
[1673652479050,2.0,1448.4,1448.2,16.81396]
[1673652479713,106.87867191,1448.5,1448.2,9.90898]
[1673652479906,2.0,1448.4,1448.2,9.90898]
[1673652480325,2.0,1448.4,1448.2,16.8141]
[1673652480720,2.0,1448.4,1448.2,3.004]
[1673652480721,12.270502,1448.4,1448.2,3.004]
[1673652480934,12.362502,1448.4,1448.2,9.90512]
[1673652481196,12.362502,1448.4,1448.2,6.90912]
[1673652481348,1.16852385,1448.3,1448.2,13.81424]
[1673652481559,1.16852385,1448.3,1448.2,6.90912]
[1673652482208,12.312502,1448.4,1448.2,6.90912]
[1673652482420,12.312502,1448.4,1448.2,13.81424]
[1673652484099,12.312502,1448.4,1448.2,20.71936]
[1673652484520,12.312502,1448.4,1448.2,13.81424]
[1673652485140,12.312502,1448.4,1448.2,6.90912]
[1673652485875,1.2312502,1448.3,1448.2,6.90912]
[1673652486855,2.4082502,1448.3,1448.2,0.004]
[1673652487023,2.4082502,1448.3,1448.1,6.90931]
[1673652487395,2.4082502,1448.3,1448.1,13.81491]
[1673652487585,2.4082502,1448.3,1448.1,6.90931]
[1673652489036,2.93482502,1448.2,1448.1,0.004]
[1673652489243,27.08401511,1448.2,1448.0,3.0]
[1673652489457,27.08401511,1448.2,1447.9,0.014]
[1673652489458,2.70840151,1448.1,1447.9,0.014]
[1673652489673,3.76665511,1448.2,1448.0,20.71775]
[1673652489887,3.43383009,1448.2,1448.0,6.90977]
[1673652490072,3.43383009,1448.2,1448.0,6.90994]
[1673652490755,1.3232502,1448.3,1448.0,6.90994]
[1673652490913,4.94083009,1448.3,1448.0,20.72208]
[1673652491334,4.57683009,1448.3,1448.0,6.90994]
[1673652491792,2.0,1448.2,1448.0,0.004]
[1673652491996,5.8915131,1448.2,1447.9,7.94310826]
[1673652492223,5.9835131,1448.2,1447.9,7.94310826]
[1673652492542,5.9835131,1448.2,1447.9,14.84965826]
[1673652492697,5.8835131,1448.2,1447.9,9.49235065]
[1673652492907,3.9835131,1448.2,1447.9,23.30545065]
[1673652493224,3.43383009,1448.2,1447.9,23.30545065]
[1673652493694,3.43383009,1448.2,1447.9,16.39890065]
[1673652494089,3.43383009,1448.2,1447.9,9.49235065]
[1673652496617,2.0,1448.1,1447.9,9.49235065]
[1673652496852,2.0,1448.1,1447.9,7.94310826]
[1673652497021,2.0,1448.1,1447.9,1.03682826]
[1673652497022,5.9864131,1448.1,1447.9,1.03682826]
[1673652497216,6.0784131,1448.1,1447.9,4.03282826]
[1673652498707,4.0784131,1448.1,1447.9,10.93931826]
[1673652499057,3.9864131,1448.1,1447.9,10.94331826]
[1673652500631,1.233,1448.2,1447.9,24.75641826]
[1673652500793,4.57483009,1448.2,1447.9,26.30566065]
[1673652501255,4.57483009,1448.2,1448.0,1.03282826]
[1673652501256,3.43383009,1448.2,1448.0,1.03282826]
[1673652501421,3.43383009,1448.2,1448.0,7.93882826]
[1673652501631,3.43383009,1448.2,1448.0,14.84889826]
[1673652502258,1.229,1448.3,1448.0,13.81607]
[1673652502469,3.088,1448.4,1448.1,2.58207065]
[1673652502470,0.092,1448.4,1448.1,2.58207065]
[1673652502842,99.95,1448.5,1448.2,21.74818826]
[1673652502843,100.042,1448.5,1448.2,21.74818826]
[1673652502996,100.042,1448.5,1448.3,5.17481883]
[1673652503210,100.042,1448.5,1448.3,12.08339883]
[1673652503985,100.042,1448.5,1448.3,5.17881883]
[1673652504585,100.042,1448.5,1448.3,12.08339883]
[1673652504782,100.042,1448.5,1448.3,13.11622709]
[1673652505465,100.042,1448.5,1448.3,13.11618709]
[1673652505779,100.042,1448.5,1448.3,20.02082709]
[1673652506151,100.042,1448.5,1448.3,18.98799883]
[1673652506355,100.042,1448.5,1448.3,12.08335883]
[1673652506792,100.042,1448.5,1448.3,18.98799883]
[1673652507367,100.042,1448.5,1448.4,1.89879988]
[1673652508248,100.042,1448.5,1448.4,8.80296988]
[1673652508506,100.042,1448.5,1448.4,16.74396814]
[1673652508931,100.042,1448.5,1448.4,27.78713814]
[1673652509140,100.042,1448.5,1448.4,29.3646137]
[1673652509304,100.042,1448.5,1448.4,28.33178544]
[1673652509511,96.5151,1448.5,1448.4,35.23595544]
[1673652509739,88.7274,1448.5,1448.4,35.23595544]
[1673652509955,66.32554,1448.5,1448.4,36.37895544]
[1673652510140,48.25805,1448.5,1448.4,45.33972707]
[1673652510381,31.77139,1448.5,1448.4,47.22431477]
[1673652510563,12.40891,1448.5,1448.4,47.22431477]
[1673652510773,12.40891,1448.5,1448.4,49.77398139]
[1673652510774,8.75646343,1448.5,1448.4,49.77398139]
[1673652511257,0.1307525,1449.1,1448.5,2.0]
[1673652511426,0.0707525,1449.1,1448.6,33.44282414]
[1673652511616,6.9716225,1449.1,1448.7,3.0]
[1673652511978,20.8653225,1449.1,1448.7,3.0]
[1673652512293,13.9644525,1449.1,1448.6,9.99738926]
[1673652512557,13.9644525,1449.1,1448.6,20.49767512]
[1673652512716,0.1627525,1449.1,1448.6,28.53988512]
[1673652512879,0.0707525,1449.1,1448.7,2.0]
[1673652513090,0.0707525,1449.1,1448.8,6.90216]
[1673652513321,0.0707525,1449.1,1448.8,0.014]
[1673652513526,8.37584889,1449.1,1448.7,13.82192478]
[1673652513767,8.46784889,1449.1,1448.7,6.91941478]
[1673652514725,8.46784889,1449.1,1448.7,13.82215478]
[1673652515103,1.56693889,1449.1,1448.7,20.72489478]
[1673652515307,1.47493889,1449.1,1448.7,20.72489478]
[1673652515569,0.14749389,1449.0,1448.7,20.72489478]
[1673652515778,3.47493889,1449.1,1448.7,13.82215478]
[1673652515994,10.37580889,1449.1,1448.7,13.82215478]
[1673652516354,13.90163898,1449.1,1448.7,13.82215478]
[1673652516508,20.80250898,1449.1,1448.7,0.01697478]
[1673652516719,27.70337898,1449.1,1448.7,0.00297478]
[1673652516925,9.6718379,1449.0,1448.7,0.00297478]
[1673652517101,23.5668379,1449.0,1448.7,0.00297478]
[1673652517521,2.0,1448.9,1448.7,0.00297478]
[1673652517747,6.90226,1448.8,1448.7,0.00297478]
[1673652517929,6.99426,1448.8,1448.7,0.00297478]
[1673652518134,6.99426,1448.8,1448.7,6.90274]
[1673652518135,2.37182,1448.8,1448.7,6.90274]
[1673652518397,1.177,1448.8,1448.7,3.014]
[1673652518589,1.177,1448.8,1448.6,0.066]
[1673652518774,1.177,1448.8,1448.6,3.0]
[1673652519310,25.31782009,1448.8,1448.6,3.0]
[1673652519641,5.9656121,1448.7,1448.4,0.066]
[1673652519851,24.23509009,1448.7,1448.3,14.26124551]
[1673652520035,3.52583009,1448.7,1448.3,28.07048551]
[1673652520247,3.52583009,1448.7,1448.3,34.97512551]
[1673652520248,3.43383009,1448.7,1448.3,34.97512551]
[1673652520680,3.43383009,1448.7,1448.4,3.0]
[1673652520894,0.34338301,1448.6,1448.4,9.90414]
[1673652521117,0.34338301,1448.6,1448.4,9.91814]
[1673652521308,3.43383009,1448.7,1448.4,9.91814]
[1673652523029,0.092,1448.8,1448.5,0.00685977]
[1673652523181,4.0053379,1449.0,1448.6,20.70963]
[1673652523392,3.43383009,1448.9,1448.6,20.72363]
[1673652523896,3.43383009,1448.9,1448.6,20.7304893]
[1673652524117,3.43383009,1448.9,1448.6,23.49906923]
[1673652525264,3.43383009,1448.9,1448.6,20.7304893]
[1673652525785,4.57083009,1448.8,1448.6,0.014]
[1673652526016,4.57083009,1448.8,1448.4,9.90391]
[1673652526017,3.43383009,1448.7,1448.4,9.90391]
[1673652526164,3.8909131,1448.7,1448.4,9.91791]
[1673652527049,3.8909131,1448.7,1448.4,16.82208]
[1673652528259,3.8909131,1448.7,1448.4,9.91791]
[1673652529152,3.8909131,1448.7,1448.4,16.82208]
[1673652529309,3.43383009,1448.7,1448.4,20.62291207]
[1673652529524,1.229,1448.8,1448.4,27.52708207]
[1673652529852,3.43383009,1448.8,1448.4,27.52708207]
[1673652531870,3.43383009,1448.8,1448.4,27.55036172]
[1673652533241,2.092,1448.9,1448.4,28.58159651]
[1673652533456,1.235,1449.0,1448.6,20.70891]
[1673652533624,1.235,1449.0,1448.6,20.73059017]
[1673652533625,4.57683009,1449.0,1448.6,20.73059017]
[1673652534189,7.19446396,1449.0,1448.6,20.73059017]
[1673652534430,7.28646396,1449.0,1448.6,20.73059017]
[1673652535085,3.85263387,1449.0,1448.6,20.73059017]
[1673652535295,1.143,1449.0,1448.6,20.73059017]
[1673652535506,1.14005087,1449.0,1448.6,20.73059017]
[1673652536982,3.14005087,1449.0,1448.6,20.73059017]
[1673652537357,6.57388096,1449.0,1448.6,13.82762017]
[1673652537660,6.66588096,1449.0,1448.6,20.73083017]
[1673652537837,10.81089794,1449.0,1448.6,20.73083017]
[1673652538465,10.81089794,1449.0,1448.6,21.76206496]
[1673652538706,5.37706785,1449.0,1448.6,21.76206496]
[1673652538924,1.23205087,1449.0,1448.6,21.76206496]
[1673652539084,26.5709525,1449.1,1448.7,3.0]
[1673652539298,26.5709525,1449.1,1448.8,27.60864]
[1673652539299,0.1627525,1449.1,1448.8,27.60864]
[1673652539502,0.0707525,1449.1,1448.8,25.62044842]
[1673652539712,0.0707525,1449.1,1448.8,26.78727475]
[1673652541124,0.0707525,1449.1,1448.8,19.88511475]
[1673652541629,0.0707525,1449.1,1448.8,12.98295475]
[1673652541841,0.0707525,1449.1,1448.8,6.08079475]
[1673652542501,0.0707525,1449.1,1448.8,12.98305475]
[1673652542802,11.47814009,1449.0,1448.8,0.01013064]
[1673652543015,4.66883009,1449.0,1448.7,9.90268]
[1673652543230,4.57683009,1449.0,1448.8,6.90214]
[1673652543387,4.57683009,1449.0,1448.8,6.91427064]
[1673652544071,4.57683009,1449.0,1448.8,0.01213064]
[1673652544244,3.43383009,1448.9,1448.7,3.01213064]
[1673652544461,3.43383009,1448.9,1448.7,3.0]
[1673652544674,10.33566009,1448.9,1448.7,3.0]
[1673652545008,10.42766009,1448.9,1448.7,3.0]
[1673652545187,13.03958393,1448.9,1448.7,3.0]
[1673652545394,13.04158393,1448.9,1448.7,3.0]
[1673652545753,6.13975393,1448.9,1448.7,3.0]
[1673652546069,6.13975393,1448.9,1448.7,23.70803]
[1673652546070,0.092,1448.9,1448.7,23.70803]
[1673652546281,1.143,1449.0,1448.7,22.75139543]
[1673652546435,4.57683009,1449.0,1448.7,21.75139543]
[1673652547433,3.43383009,1449.0,1448.7,21.75139543]
[1673652548172,3.43383009,1449.0,1448.7,14.84865543]
[1673652548479,4.79677835,1449.0,1448.7,7.94591543]
[1673652548846,1.36294826,1449.0,1448.7,21.75139543]
[1673652549056,4.31244634,1449.1,1448.7,21.75139543]
[1673652549270,6.63658259,1449.1,1448.7,21.74139543]
[1673652549529,7.74627643,1449.1,1448.7,21.74139543]
[1673652550559,6.72858259,1449.1,1448.7,21.74139543]
[1673652551558,4.72858259,1449.1,1448.7,21.74139543]
[1673652551876,4.63658259,1449.1,1448.8,9.07624954]
[1673652552061,4.63658259,1449.1,1448.8,6.91424064]
[1673652552899,5.65427643,1449.1,1448.8,6.91424064]
[1673652553083,5.74627643,1449.1,1448.8,6.91424064]
[1673652553754,7.74627643,1449.1,1448.8,6.91424064]
[1673652553967,8.83601735,1449.1,1448.8,20.71876064]
[1673652554127,5.74627643,1449.1,1448.8,20.71876064]
[1673652554334,4.72858259,1449.1,1448.8,20.71876064]
[1673652554592,4.63658259,1449.1,1448.8,20.71876064]
[1673652556061,4.63658259,1449.1,1448.8,13.81650064]
[1673652556457,4.63658259,1449.1,1448.8,20.71876064]
[1673652558887,0.0707525,1449.1,1448.8,23.59135062]
[1673652560150,0.0707525,1449.1,1448.8,0.01213064]
[1673652560151,6.90131,1449.0,1448.8,0.01213064]
[1673652560366,25.36376009,1449.0,1448.7,0.01213064]
[1673652560592,25.36376009,1449.0,1448.7,3.0]
[1673652560909,2.53637601,1448.9,1448.7,3.0]
[1673652561223,9.43819601,1448.9,1448.6,16.37596543]
[1673652561484,23.33379601,1448.9,1448.6,16.32396543]
[1673652561646,23.33379601,1448.9,1448.6,15.29273064]
[1673652561862,16.43193601,1448.9,1448.6,15.29273064]
[1673652562364,23.33371601,1448.9,1448.6,15.29273064]
[1673652562727,1.72356813,1448.8,1448.6,15.29273064]
[1673652563223,1.72356813,1448.8,1448.6,0.01213064]
[1673652563382,1.72356813,1448.8,1448.6,3.0]
[1673652563851,2.86656813,1448.8,1448.6,3.0]
[1673652564015,2.86656813,1448.8,1448.6,9.90317]
[1673652564228,2.86656813,1448.8,1448.6,3.01213064]
[1673652564437,2.86656813,1448.8,1448.6,3.0]
[1673652564687,0.39286733,1448.7,1448.6,3.0]
[1673652564902,1.56986733,1448.7,1448.6,9.90321]
[1673652565235,1.56986733,1448.7,1448.6,9.91534064]
[1673652565850,0.39286733,1448.7,1448.6,16.81855064]
[1673652566012,0.39286733,1448.7,1448.6,3.01213064]
[1673652566221,0.39286733,1448.7,1448.6,9.90321]
[1673652566427,0.39286733,1448.7,1448.6,9.91534064]
[1673652567439,0.39286733,1448.7,1448.6,16.81855064]
[1673652567587,0.39286733,1448.7,1448.6,9.91534064]
[1673652567796,0.39286733,1448.7,1448.6,3.01213064]
[1673652568057,0.39286733,1448.7,1448.6,3.0]
[1673652568636,0.39286733,1448.7,1448.6,9.90321]
[1673652568887,0.39286733,1448.7,1448.6,3.01213064]
[1673652569086,0.39286733,1448.7,1448.6,3.0]
[1673652570253,0.39286733,1448.7,1448.6,4.03123479]
[1673652571410,0.39286733,1448.7,1448.6,10.93444479]
[1673652571607,0.39286733,1448.7,1448.6,10.94657543]
[1673652572204,0.39286733,1448.7,1448.6,9.91534064]
[1673652572453,0.39286733,1448.7,1448.6,27.41660006]
[1673652573503,0.39286733,1448.7,1448.6,28.96345224]
[1673652573714,0.39286733,1448.7,1448.6,27.93221745]
[1673652574216,0.38891608,1448.7,1448.6,29.99468702]
[1673652574429,0.38891608,1448.7,1448.6,27.93221745]
[1673652574845,0.38891608,1448.7,1448.6,28.9658542]
[1673652575060,0.38891608,1448.7,1448.6,27.41900202]
[1673652575680,0.38891608,1448.7,1448.6,6.70937202]
[1673652575894,0.38891608,1448.7,1448.6,24.78377526]
[1673652576530,0.38891608,1448.7,1448.6,26.33062744]
[1673652577924,0.38891608,1448.7,1448.6,24.78377526]
[1673652579516,0.38891608,1448.7,1448.6,26.33062744]
[1673652579671,0.38891608,1448.7,1448.6,24.78377526]
[1673652579883,0.38891608,1448.7,1448.6,30.89429396]
[1673652580090,0.38891608,1448.7,1448.6,31.8971084]
[1673652580355,6.08e-06,1448.7,1448.6,31.8971084]
[1673652580544,6.08e-06,1448.7,1448.6,29.83463883]
[1673652581136,6.08e-06,1448.7,1448.6,38.43033883]
[1673652586093,6.08e-06,1448.7,1448.6,37.94728119]
[1673652586317,6.08e-06,1448.7,1448.6,13.1861713]
[1673652586531,6.08e-06,1448.7,1448.6,4.5904713]
[1673652586860,6.08e-06,1448.7,1448.6,4.57834066]
[1673652587692,6.08e-06,1448.7,1448.6,11.48155066]
[1673652587942,6.08e-06,1448.7,1448.6,12.52700454]
[1673652588074,6.08e-06,1448.7,1448.6,26.33342454]
[1673652588612,6.08e-06,1448.7,1448.6,19.43021454]
[1673652588801,6.08e-06,1448.7,1448.6,26.33342454]
[1673652589015,6.08e-06,1448.7,1448.6,19.43021454]
[1673652589225,6.08e-06,1448.7,1448.6,18.3968913]
[1673652590167,6.08e-06,1448.7,1448.6,4.07383223]
[1673652590381,6.08e-06,1448.7,1448.6,4.06170159]
[1673652590593,6.08e-06,1448.7,1448.6,4.03332372]
[1673652591586,8.27974669,1448.7,1448.5,9.17855436]
[1673652591904,2.0,1448.6,1448.5,1.04545436]
[1673652592065,3.03717467,1448.6,1448.5,1.03332372]
[1673652592272,2.0,1448.6,1448.5,1.03332372]
[1673652592546,2.0,1448.6,1448.4,17.49201715]
[1673652592694,10.37182669,1448.7,1448.4,9.49954715]
[1673652592695,3.46900669,1448.7,1448.4,9.49954715]
[1673652592906,3.43383009,1448.6,1448.4,1.04545436]
[1673652593112,12.76918052,1448.5,1448.2,2.64741715]
[1673652593342,4.57483009,1448.4,1448.2,2.58328651]
[1673652593553,3.43383009,1448.3,1448.2,2.58328651]
[1673652593779,3.43383009,1448.3,1448.2,1.03332372]
[1673652593990,3.8913131,1448.3,1448.2,1.03332372]
[1673652595497,3.8913131,1448.3,1448.1,16.45797715]
[1673652595691,3.8913131,1448.3,1448.1,1.04545436]
[1673652595692,5.0283131,1448.3,1448.1,1.04545436]
[1673652595996,4.57483009,1448.2,1448.1,1.03332372]
[1673652596175,5.53514441,1448.2,1448.1,1.03332372]
[1673652596383,5.53514441,1448.2,1448.1,20.7168]
[1673652596384,4.48614441,1448.2,1448.1,20.7168]
[1673652596619,3.43383009,1448.2,1448.1,14.85665436]
[1673652597314,0.092,1448.3,1448.1,1.04545436]
[1673652597529,3.43383009,1448.3,1448.1,1.03332372]
[1673652598482,3.43383009,1448.3,1448.1,20.71663]
[1673652598693,1.233,1448.4,1448.1,21.76208436]
[1673652598991,4.57483009,1448.4,1448.1,7.95088436]
[1673652599206,5.8747244,1448.4,1448.1,7.95103436]
[1673652599448,5.9667244,1448.4,1448.1,7.95103436]
[1673652600077,12.8708944,1448.4,1448.1,1.04545436]
[1673652600290,12.8708944,1448.4,1448.1,1.03332372]
[1673652600600,3.43383009,1448.3,1448.0,9.69134354]
[1673652600817,3.43383009,1448.2,1448.0,9.63934354]
[1673652601007,3.43383009,1448.2,1448.0,16.54541354]
[1673652601627,3.43383009,1448.2,1448.0,23.45148354]
[1673652601866,0.092,1448.3,1448.1,1.03332372]
[1673652602084,1.57838301,1448.5,1448.2,20.71536]
[1673652602299,3.59166839,1448.4,1448.2,20.72749064]
[1673652602515,3.59166839,1448.4,1448.2,6.91725064]
[1673652602730,3.59166839,1448.4,1448.2,13.82237064]
[1673652603092,3.59166839,1448.4,1448.2,21.76081436]
[1673652603573,3.59166839,1448.4,1448.2,14.85569436]
[1673652603718,3.43383009,1448.4,1448.2,0.01213064]
[1673652603935,3.43583009,1448.4,1448.1,7.95905235]
[1673652604144,0.28175228,1448.3,1448.1,7.96105235]
[1673652604826,3.43383009,1448.4,1448.1,6.92772863]
[1673652605047,3.43383009,1448.4,1448.1,16.18346055]
[1673652605197,3.43024788,1448.4,1448.1,16.18346055]
[1673652605619,3.43024788,1448.4,1448.1,17.21678427]
[1673652606086,3.43024788,1448.4,1448.1,16.18346055]
[1673652606297,3.43024788,1448.4,1448.1,23.08906055]
[1673652606459,3.43024788,1448.4,1448.1,24.12238427]
[1673652606665,3.235,1448.5,1448.2,5.41223843]
[1673652606666,0.092,1448.5,1448.2,5.41223843]
[1673652606908,0.092,1448.6,1448.3,27.61856]
[1673652607114,7.9331,1448.8,1448.3,27.63069064]
[1673652607328,11.45893009,1448.8,1448.3,27.63069064]
[1673652607529,11.45893009,1448.8,1448.4,2.76306906]
[1673652607777,3.52583009,1448.8,1448.5,20.71082]
[1673652607973,3.43383009,1448.8,1448.5,20.72295064]
[1673652608400,3.43383009,1448.8,1448.5,6.91572064]
[1673652608785,11.47109009,1448.8,1448.5,0.01213064]
[1673652609005,8.4001411,1448.8,1448.4,13.81990064]
[1673652609335,8.4001411,1448.8,1448.5,20.71101]
[1673652609531,8.4001411,1448.8,1448.5,20.72314064]
[1673652609740,1.227,1448.8,1448.5,20.72314064]
[1673652609947,1.135,1448.8,1448.5,20.72314064]
[1673652610211,1.135,1448.8,1448.5,13.81945064]
[1673652610522,8.03748,1448.8,1448.5,0.01213064]
[1673652610693,1.227,1448.8,1448.5,6.9036]
[1673652610891,1.135,1448.8,1448.5,13.81942064]
[1673652611100,12.48402009,1448.8,1448.5,0.01213064]
[1673652611306,12.48402009,1448.8,1448.4,6.91584064]
[1673652611307,19.47833009,1448.8,1448.4,6.91584064]
[1673652611559,19.47833009,1448.8,1448.4,0.01213064]
[1673652611852,18.37331009,1448.7,1448.4,3.0]
[1673652612066,18.37331009,1448.7,1448.3,0.01213064]
[1673652612067,3.43383009,1448.6,1448.3,20.77768064]
[1673652612295,3.43383009,1448.6,1448.4,3.0]
[1673652612618,3.43383009,1448.6,1448.4,9.90413]
[1673652612831,3.43383009,1448.6,1448.4,19.1981517]
[1673652612992,3.43383009,1448.6,1448.4,26.1023217]
[1673652613410,0.092,1448.7,1448.4,26.1023217]
[1673652613631,5.87,1448.9,1448.4,26.1023217]
[1673652613632,1.235,1448.9,1448.4,26.1023217]
[1673652613848,3.43383009,1448.8,1448.6,20.70963]
[1673652614041,3.43383009,1448.8,1448.6,20.72176064]
[1673652614252,0.092,1448.9,1448.6,20.72176064]
[1673652614474,10.33582009,1448.9,1448.6,0.01213064]
[1673652614726,10.33582009,1448.9,1448.5,13.86356248]
[1673652614727,3.43383009,1448.8,1448.5,0.01689312]
[1673652614881,3.43383009,1448.7,1448.5,0.00476248]
[1673652615211,3.43383009,1448.7,1448.5,6.90840248]
[1673652615411,3.43383009,1448.7,1448.5,0.01689312]
[1673652615619,6.90369,1448.5,1448.3,3.06413064]
[1673652615833,0.092,1448.5,1448.3,3.0]
[1673652616096,4.66683009,1448.6,1448.3,9.90463]
[1673652616404,5.7670494,1448.6,1448.3,16.82140064]
[1673652616718,0.092,1448.6,1448.3,23.72604064]
[1673652616924,18.7819,1448.8,1448.3,24.75936436]
[1673652617135,22.21573009,1448.8,1448.3,24.75936436]
[1673652617299,22.21573009,1448.8,1448.3,26.30932715]
[1673652617508,0.092,1448.8,1448.4,4.63093272]
[1673652617755,8.0251,1449.0,1448.5,30.61436]
[1673652617989,8.0251,1449.0,1448.5,31.65981436]
[1673652617990,11.45893009,1449.0,1448.5,31.65981436]
[1673652618217,3.52583009,1449.0,1448.6,3.16598144]
[1673652618346,3.43383009,1449.0,1448.7,13.80528]
[1673652618563,3.43383009,1449.0,1448.7,20.72015064]
[1673652619033,10.33524009,1449.0,1448.7,0.01213064]
[1673652619193,13.41635835,1449.0,1448.7,3.0]
[1673652619867,10.42724009,1449.0,1448.7,3.0]
[1673652620250,3.52583009,1449.0,1448.7,9.90261]
[1673652620464,3.43383009,1449.0,1448.7,9.91474064]
[1673652621232,21.5698625,1449.1,1448.7,9.91474064]
[1673652621451,11.20128259,1449.1,1448.8,0.00307947]
[1673652621671,11.20128259,1449.1,1448.9,20.70534]
[1673652621815,3.59658259,1449.1,1448.9,20.71747064]
[1673652622033,3.50458259,1449.1,1448.9,20.71747064]
[1673652622698,0.0707525,1449.1,1448.9,6.91391064]
[1673652623309,0.0707525,1449.1,1448.9,13.81569064]
[1673652624881,0.0707525,1449.1,1448.9,20.71747064]
[1673652625338,0.0707525,1449.1,1448.9,13.81569064]
[1673652626287,0.0707525,1449.1,1448.9,6.91391064]
[1673652626822,0.0707525,1449.1,1448.9,0.01213064]
[1673652627128,0.0707525,1449.1,1448.8,9.28936012]
[1673652627710,0.0707525,1449.1,1448.8,16.19162012]
[1673652627948,0.0707525,1449.1,1448.8,2.38754012]
[1673652628165,6.9715825,1449.1,1448.8,2.37540948]
[1673652628380,7.0635825,1449.1,1448.8,2.37540948]
[1673652628556,7.0635825,1449.1,1448.8,0.00307947]
[1673652628972,9.0635825,1449.1,1448.8,0.00307947]
[1673652629434,7.0635825,1449.1,1448.8,0.00307947]
[1673652629627,9.0635825,1449.1,1448.8,0.00307947]
[1673652629971,9.06027779,1449.1,1448.8,0.00307947]
[1673652630179,0.15944779,1449.1,1448.8,1.81218348]
[1673652630493,0.06744779,1449.1,1448.8,22.51896348]
[1673652630705,0.06744779,1449.1,1448.8,22.53109412]
[1673652631391,0.06744779,1449.1,1449.0,20.70393]
[1673652631598,0.06744779,1449.1,1449.0,20.71606064]
[1673652633666,0.06744779,1449.1,1449.0,23.71606064]
[1673652634033,0.06744779,1449.1,1449.0,30.61737064]
[1673652634034,7.79e-06,1449.1,1449.0,30.61737064]
[1673652635324,7.79e-06,1449.1,1449.0,9.91344064]
[1673652635664,7.79e-06,1449.1,1449.0,3.01213064]
[1673652635876,6.90083779,1449.1,1448.9,3.08568704]
[1673652636047,6.90083779,1449.1,1448.9,3.0215564]
[1673652636048,0.09200779,1449.1,1448.9,3.0215564]
[1673652636247,7.79e-06,1449.1,1448.9,26.4267251]
[1673652636450,7.79e-06,1449.1,1448.9,26.43885574]
[1673652638778,7.79e-06,1449.1,1448.9,5.73048782]
[1673652638987,7.79e-06,1449.1,1448.9,9.93228912]
[1673652639204,7.79e-06,1449.1,1448.9,23.73584912]
[1673652641393,7.79e-06,1449.1,1448.9,9.93228912]
[1673652641598,7.79e-06,1449.1,1449.0,20.70393]
[1673652641859,7.79e-06,1449.1,1449.0,23.71606064]
[1673652642090,0.04868167,1449.3,1449.0,27.08488255]
[1673652642249,3.48251176,1449.3,1449.0,27.08488255]
[1673652642602,0.04868167,1449.3,1449.0,27.09436813]
[1673652642814,0.04868167,1449.3,1449.1,4.72293994]
[1673652642965,0.04868167,1449.3,1449.2,20.70105]
[1673652643299,0.04868167,1449.3,1449.2,23.7226649]
[1673652643505,0.04868167,1449.3,1449.2,9.9219649]
[1673652643860,0.04868167,1449.3,1449.2,3.0216149]
[1673652644050,0.04868167,1449.3,1449.2,3.00948426]
[1673652644227,6.94856167,1449.3,1449.2,3.00948426]
[1673652644441,7.04056167,1449.3,1449.2,3.00948426]
[1673652644648,13.94044167,1449.3,1449.2,3.00948426]
[1673652645010,20.84032167,1449.3,1449.2,3.00948426]
[1673652645225,10.02282107,1449.3,1449.2,3.00948426]
[1673652645396,3.12294107,1449.3,1449.2,3.00948426]
[1673652645612,0.04868167,1449.3,1449.2,3.00948426]
[1673652646124,0.04868167,1449.3,1449.2,9.90983426]
[1673652646335,0.04868167,1449.3,1449.2,9.9219649]
[1673652646587,0.04868167,1449.3,1449.2,3.0216149]
[1673652646801,0.04868167,1449.3,1449.2,9.90983426]
[1673652646970,0.04868167,1449.3,1449.2,9.9219649]
[1673652647331,0.04868167,1449.3,1449.2,16.8223149]
[1673652647543,0.04868167,1449.3,1449.2,27.71226239]
[1673652648662,0.04868167,1449.3,1449.2,20.81191239]
[1673652649103,0.04868167,1449.3,1449.2,7.01121239]
[1673652649722,0.04868167,1449.3,1449.2,3.0216149]
[1673652649947,0.04868167,1449.3,1449.2,3.00948426]
[1673652650427,0.04868167,1449.3,1449.2,9.90983426]
[1673652650635,0.04868167,1449.3,1449.2,16.8223149]